bitfinex-derivatives/quotes_BTCF0:USTF0_20250710
["timestamp","ask_amount","ask_price","bid_price","bid_amount"]
[1752117469194,1.15987817,111230.0,111220.0,1.30920605]
[1752117469398,1.15987817,111230.0,111220.0,1.0452987]
[1752117469596,1.15987817,111230.0,111220.0,0.98840605]
[1752117469895,1.15987817,111230.0,111220.0,1.36512605]
[1752117470599,1.15987817,111230.0,111220.0,0.97392605]
[1752117470794,1.15987817,111230.0,111220.0,1.33472605]
[1752117471099,1.15987817,111230.0,111220.0,1.32472605]
[1752117472199,1.15987817,111230.0,111220.0,0.96392605]
[1752117472399,0.89597082,111230.0,111220.0,0.96392605]
[1752117472802,0.91218082,111230.0,111220.0,0.96392605]
[1752117473194,0.89597082,111230.0,111220.0,1.32472605]
[1752117473500,0.91218082,111230.0,111220.0,1.32472605]
[1752117474497,0.91218082,111230.0,111220.0,0.98472605]
[1752117474701,0.91218082,111230.0,111220.0,1.36472605]
[1752117475000,1.17608817,111230.0,111220.0,1.00392605]
[1752117475302,1.17608817,111230.0,111220.0,0.97122605]
[1752117475501,1.17608817,111230.0,111220.0,1.33202605]
[1752117476000,1.17608817,111230.0,111220.0,1.29202605]
[1752117476202,1.17608817,111230.0,111220.0,0.93122605]
[1752117476496,1.17608817,111230.0,111220.0,0.6673187]
[1752117476701,0.91218082,111230.0,111220.0,1.29202605]
[1752117476900,1.17608817,111230.0,111220.0,1.29202605]
[1752117477101,1.17608817,111230.0,111220.0,0.93122605]
[1752117477301,1.17608817,111230.0,111220.0,1.29202605]
[1752117477501,1.17608817,111230.0,111220.0,0.93122605]
[1752117478003,1.17608817,111230.0,111220.0,1.29202605]
[1752117478302,1.17608817,111230.0,111220.0,1.1951334]
[1752117479203,1.25657074,111230.0,111220.0,1.1951334]
[1752117479400,1.17608817,111230.0,111220.0,1.1951334]
[1752117479704,1.17608817,111230.0,111220.0,0.95122605]
[1752117480801,0.91218082,111230.0,111220.0,0.95122605]
[1752117480999,0.91218082,111230.0,111220.0,1.1751334]
[1752117482904,1.17608817,111230.0,111220.0,1.1751334]
[1752117484007,1.17608817,111230.0,111220.0,0.91122605]
[1752117484308,0.91218082,111230.0,111220.0,0.91122605]
[1752117484710,0.91218082,111230.0,111220.0,0.97122605]
[1752117485805,0.91218082,111230.0,111220.0,1.33202605]
[1752117486109,0.91218082,111230.0,111220.0,1.27202605]
[1752117486611,0.91218082,111230.0,111220.0,1.5359334]
[1752117488911,0.91218082,111230.0,111220.0,1.1751334]
[1752117489512,0.91218082,111230.0,111220.0,1.1851334]
[1752117490207,0.29954082,111230.0,111220.0,1.28202605]
[1752117491010,0.29954082,111230.0,111220.0,1.31202605]
[1752117492112,0.29954082,111230.0,111220.0,1.5759334]
[1752117494611,0.29954082,111230.0,111220.0,1.5659334]
[1752117495413,0.29954082,111230.0,111220.0,1.30202605]
[1752117495715,0.28333082,111230.0,111220.0,1.26131605]
[1752117495914,0.28333082,111230.0,111220.0,1.28544605]
[1752117496210,0.29931082,111230.0,111220.0,1.28544605]
[1752117498418,0.37979339,111230.0,111220.0,1.28544605]
[1752117498918,0.64370074,111230.0,111220.0,1.28544605]
[1752117499118,0.64370074,111230.0,111220.0,1.5493534]
[1752117499318,0.62772074,111230.0,111220.0,1.26131605]
[1752117499512,0.64370074,111230.0,111220.0,1.28544605]
[1752117499718,0.62772074,111230.0,111220.0,1.28544605]
[1752117500018,0.62772074,111230.0,111220.0,1.0215387]
[1752117500219,0.36381339,111230.0,111220.0,1.0215387]
[1752117500416,0.64370074,111230.0,111220.0,1.28544605]
[1752117500817,0.64370074,111230.0,111220.0,1.89804605]
[1752117501017,0.64370074,111230.0,111220.0,1.86804605]
[1752117502118,0.64370074,111230.0,111220.0,1.6041387]
[1752117502322,0.64370074,111230.0,111220.0,1.86804605]
[1752117502511,0.64370074,111230.0,111220.0,1.5871564]
[1752117502820,0.64370074,111230.0,111220.0,1.85106375]
[1752117503013,0.64370074,111230.0,111220.0,1.5871564]
[1752117503215,0.64370074,111230.0,111220.0,1.85106375]
[1752117503416,0.64370074,111230.0,111220.0,1.5871564]
[1752117503720,0.64370074,111230.0,111220.0,1.85106375]
[1752117504514,0.64370074,111230.0,111220.0,1.86106375]
[1752117506021,0.64370074,111230.0,111220.0,1.84106375]
[1752117507321,0.64370074,111230.0,111220.0,1.5771564]
[1752117507715,0.64370074,111230.0,111220.0,0.9645564]
[1752117507922,0.96370074,111230.0,111220.0,1.5682564]
[1752117508122,0.37979339,111230.0,111220.0,1.5764064]
[1752117508323,0.56321817,111230.0,111220.0,1.84031375]
[1752117508722,0.56321817,111230.0,111220.0,1.5529864]
[1752117508922,0.64370074,111230.0,111220.0,1.81689375]
[1752117509125,0.64370074,111230.0,111220.0,1.84031375]
[1752117509520,0.64370074,111230.0,111220.0,1.74031375]
[1752117509719,0.6706483,111230.0,111220.0,1.4764064]
[1752117510127,0.56321817,111230.0,111220.0,1.4764064]
[1752117510531,0.64390441,111230.0,111220.0,1.4764064]
[1752117511831,0.64390441,111230.0,111220.0,0.8638464]
[1752117512031,0.64390441,111230.0,111220.0,0.8800564]
[1752117512232,1.34470441,111230.0,111220.0,0.52979514]
[1752117512433,1.60860771,111230.0,111220.0,0.22053874]
[1752117512634,1.52792552,111230.0,111220.0,0.01053874]
[1752117512936,1.52792552,111230.0,111220.0,0.02674874]
[1752117513140,1.60859815,111230.0,111220.0,0.02674874]
[1752117513436,1.52792552,111230.0,111220.0,0.1959709]
[1752117513629,1.52792552,111230.0,111220.0,0.20651033]
[1752117513834,1.52792552,111230.0,111220.0,0.01621]
[1752117514839,1.53792552,111230.0,111220.0,0.01621]
[1752117515230,1.6185649,111230.0,111220.0,0.01621]
[1752117515631,1.6356249,111230.0,111220.0,0.01621]
[1752117516738,1.5956249,111230.0,111220.0,0.01621]
[1752117516937,0.1797609,111220.0,111210.0,0.675393]
[1752117517133,1.81061172,111220.0,111210.0,1.02214261]
[1752117517839,1.44061172,111220.0,111210.0,1.02214261]
[1752117518042,1.80061172,111220.0,111210.0,1.04556265]
[1752117518340,1.80061172,111220.0,111210.0,1.04756265]
[1752117518840,1.8812511,111220.0,111210.0,1.04756265]
[1752117519443,1.80061172,111220.0,111210.0,1.04756265]
[1752117519641,1.80061172,111220.0,111210.0,1.04956265]
[1752117520245,1.78406172,111220.0,111210.0,1.04956265]
[1752117520441,1.76406172,111220.0,111210.0,1.04956265]
[1752117520950,1.76406172,111220.0,111210.0,1.039023]
[1752117521136,1.76406172,111220.0,111210.0,1.04956265]
[1752117521332,1.76406172,111220.0,111210.0,1.039023]
[1752117521545,1.81292904,111220.0,111210.0,1.05956265]
[1752117521743,1.81311574,111220.0,111210.0,1.049023]
[1752117522847,1.43311574,111220.0,111210.0,1.049023]
[1752117523050,1.16034107,111220.0,111210.0,1.31293035]
[1752117523447,0.28383372,111220.0,111210.0,1.31293035]
[1752117523748,0.21963372,111220.0,111210.0,1.58737731]
[1752117524046,0.21963372,111220.0,111210.0,1.70107731]
[1752117524242,0.21963372,111220.0,111210.0,1.43716996]
[1752117524748,0.03987282,111220.0,111210.0,1.70107731]
[1752117525048,0.03987282,111220.0,111210.0,1.36716996]
[1752117525348,0.03987282,111220.0,111210.0,1.35663035]
[1752117525548,0.03987282,111220.0,111210.0,1.3671693]
[1752117525850,0.03987282,111220.0,111210.0,1.63107665]
[1752117526044,0.03987282,111220.0,111210.0,1.99187665]
[1752117528951,0.03987282,111220.0,111210.0,2.28647665]
[1752117530553,0.03987282,111220.0,111210.0,1.75866195]
[1752117530742,0.03987282,111220.0,111210.0,2.28647665]
[1752117531142,0.03987282,111220.0,111210.0,2.33647665]
[1752117532050,0.03987282,111220.0,111210.0,2.0725693]
[1752117534654,0.03987282,111220.0,111210.0,2.0225693]
[1752117535251,0.03987282,111220.0,111210.0,2.28647665]
[1752117535754,0.03987282,111220.0,111210.0,2.0225693]
[1752117536256,0.03987282,111220.0,111210.0,2.28647665]
[1752117537057,0.03987282,111220.0,111210.0,2.28647616]
[1752117539656,0.03987282,111220.0,111210.0,2.34647616]
[1752117539856,0.03987282,111220.0,111210.0,2.3359377]
[1752117540155,0.03987282,111220.0,111210.0,2.3604571]
[1752117541955,0.03987282,111220.0,111210.0,2.36045649]
[1752117542756,0.03987282,111220.0,111210.0,2.09654914]
[1752117544856,0.03987282,111220.0,111210.0,2.09654911]
[1752117546056,0.03987282,111220.0,111210.0,2.10654911]
[1752117546452,0.07247282,111220.0,111210.0,2.10654911]
[1752117547155,0.07247282,111220.0,111210.0,1.72654911]
[1752117547357,0.07247282,111220.0,111210.0,2.06654911]
[1752117548356,0.10377282,111220.0,111210.0,2.06654911]
[1752117549958,0.36768017,111220.0,111210.0,2.00284911]
[1752117550750,0.36768017,111220.0,111210.0,1.99231748]
[1752117550953,0.36768017,111220.0,111210.0,1.66285595]
[1752117551158,0.10377282,111220.0,111210.0,1.99285595]
[1752117552953,0.10377282,111220.0,111210.0,2.2567633]
[1752117554560,0.10377282,111220.0,111210.0,2.2867633]
[1752117555963,0.10377282,111220.0,111210.0,1.9267633]
[1752117556162,0.11206282,111220.0,111210.0,2.2867633]
[1752117559065,0.11206282,111220.0,111210.0,2.02285595]
[1752117559565,0.11206282,111220.0,111210.0,1.99286764]
[1752117559968,0.11206282,111220.0,111210.0,2.25677499]
[1752117560263,0.01876035,111230.0,111220.0,0.1797608]
[1752117560569,0.0623,111230.0,111220.0,2.30124393]
[1752117560860,0.0623,111230.0,111220.0,2.36354764]
[1752117561364,0.0623,111230.0,111220.0,2.01354764]
[1752117561557,0.0623,111230.0,111220.0,2.35354764]
[1752117562572,0.0623,111230.0,111220.0,2.35354071]
[1752117564570,0.0623,111230.0,111220.0,2.64814071]
[1752117565073,0.0623,111230.0,111220.0,2.66814071]
[1752117565968,0.0623,111230.0,111220.0,2.30814071]
[1752117566270,0.0623,111230.0,111220.0,2.66814071]
[1752117567872,0.52168205,111230.0,111220.0,2.34308466]
[1752117568268,0.52168205,111230.0,111220.0,2.27121752]
[1752117569771,0.52168205,111230.0,111220.0,2.24121752]
[1752117570472,0.52168205,111230.0,111220.0,1.33401752]
[1752117570771,0.52168205,111230.0,111220.0,1.94661752]
[1752117570967,0.52168205,111230.0,111220.0,1.88052487]
[1752117571272,0.52168205,111230.0,111220.0,2.21058299]
[1752117572377,0.560651,111230.0,111220.0,2.21058299]
[1752117573073,0.560651,111230.0,111220.0,1.94667564]
[1752117574675,0.560651,111230.0,111220.0,1.95667564]
[1752117576076,0.560651,111230.0,111220.0,1.93667564]
[1752117579786,0.560651,111230.0,111220.0,1.96667564]
[1752117580976,0.560651,111230.0,111220.0,1.61667564]
[1752117581181,0.560651,111230.0,111220.0,1.93667564]
[1752117582387,0.29674365,111230.0,111220.0,1.93667564]
[1752117582582,0.560651,111230.0,111220.0,1.93667564]
[1752117583076,0.560651,111230.0,111220.0,2.20058299]
[1752117583775,0.29674365,111230.0,111220.0,2.20058299]
[1752117584071,0.560651,111230.0,111220.0,2.20058299]
[1752117584584,0.544921,111230.0,111220.0,2.22058299]
[1752117584884,0.561211,111230.0,111220.0,2.22058299]
[1752117585980,0.561211,111230.0,111220.0,2.20058299]
[1752117587282,0.544921,111230.0,111220.0,2.20058299]
[1752117587476,0.561211,111230.0,111220.0,2.20058299]
[1752117588680,0.561211,111230.0,111220.0,2.20058329]
[1752117590480,0.10126895,111230.0,111220.0,2.20058329]
[1752117590681,0.03896895,111230.0,111220.0,2.20058329]
[1752117590891,0.03896895,111230.0,111220.0,2.26178329]
[1752117591187,0.03896895,111230.0,111220.0,2.29178329]
[1752117591580,0.03896895,111230.0,111220.0,1.94178329]
[1752117591784,0.03896895,111230.0,111220.0,2.28178329]
[1752117592184,0.03896895,111230.0,111220.0,2.28378329]
[1752117592489,0.03896895,111230.0,111220.0,2.28578329]
[1752117594087,0.03896895,111230.0,111220.0,2.58038329]
[1752117594478,0.03896895,111230.0,111220.0,2.31322275]
[1752117594680,0.03896895,111230.0,111220.0,2.63322275]
[1752117596291,0.03896895,111230.0,111220.0,2.31322275]
[1752117596491,0.03896895,111230.0,111220.0,2.62322275]
[1752117598989,0.03896895,111230.0,111220.0,2.09540805]
[1752117599190,0.03896895,111230.0,111220.0,2.62322275]
[1752117599491,0.07196895,111230.0,111220.0,2.62322275]
[1752117599894,0.07196895,111230.0,111220.0,2.66322275]
[1752117600191,0.07196112,111230.0,111220.0,2.66322275]
[1752117600994,0.07196112,111230.0,111220.0,2.63322275]
[1752117601195,0.10386112,111230.0,111220.0,2.57988275]
[1752117601396,0.10386112,111230.0,111220.0,2.60261275]
[1752117601995,0.54751307,111230.0,111220.0,2.60261275]
[1752117602195,0.36776693,111230.0,111220.0,2.60261275]
[1752117602397,0.36776693,111230.0,111220.0,2.60261244]
[1752117604096,0.10385958,111230.0,111220.0,2.60261244]
[1752117605396,0.10385958,111230.0,111220.0,2.60261259]
[1752117606000,0.10385958,111230.0,111220.0,2.66261259]
[1752117606201,0.28360418,111230.0,111220.0,2.66261259]
[1752117607801,0.28360418,111230.0,111220.0,2.63261259]
[1752117608103,0.28360418,111230.0,111220.0,2.10479789]
[1752117608293,0.28360418,111230.0,111220.0,2.63261259]
[1752117610998,0.28360418,111230.0,111220.0,2.65261259]
[1752117612304,0.28360418,111230.0,111220.0,2.59261259]
[1752117613104,0.28360418,111230.0,111220.0,2.56191259]
[1752117614497,0.28360418,111230.0,111220.0,2.25191259]
[1752117614703,0.28360418,111230.0,111220.0,2.58191259]
[1752117616004,0.28360418,111230.0,111220.0,2.61191259]
[1752117617105,0.10385958,111230.0,111220.0,2.61191259]
[1752117618508,0.28360418,111230.0,111220.0,2.61191259]
[1752117619710,0.28360418,111230.0,111220.0,2.57191259]
[1752117620009,0.10385958,111230.0,111220.0,2.57191259]
[1752117621103,0.28360418,111230.0,111220.0,1.94931259]
[1752117621297,0.28360418,111230.0,111220.0,2.56183259]
[1752117623909,0.56319153,111230.0,111220.0,2.22508506]
[1752117624908,0.56319153,111230.0,111220.0,2.26508506]
[1752117626013,0.56319153,111230.0,111220.0,2.28508506]
[1752117626900,0.56319153,111230.0,111220.0,1.40865771]
[1752117627100,0.56319153,111230.0,111220.0,1.83117771]
[1752117627401,0.56319153,111230.0,111220.0,2.09508506]
[1752117627808,0.56319153,111230.0,111220.0,1.83117771]
[1752117629111,0.56319153,111230.0,111220.0,2.09508506]
[1752117629507,0.56329153,111230.0,111220.0,2.07537506]
[1752117629712,0.56329153,111230.0,111220.0,1.78077506]
[1752117630310,0.56329153,111230.0,111220.0,1.78077616]
[1752117630905,0.56329153,111230.0,111220.0,1.51686881]
[1752117631107,1.88115826,111230.0,111220.0,0.3583498]
[1752117631307,1.88115826,111230.0,111220.0,0.3746498]
[1752117631512,1.88115826,111230.0,111220.0,0.35835229]
[1752117632213,1.88115826,111230.0,111220.0,0.34781308]
[1752117633818,1.88115826,111230.0,111220.0,0.34581308]
[1752117634019,1.88115826,111230.0,111220.0,0.36211308]
[1752117634318,1.88115826,111230.0,111220.0,0.36011308]
[1752117634618,1.88115826,111230.0,111220.0,0.28011308]
[1752117634814,1.88115826,111230.0,111220.0,0.26381308]
[1752117635116,1.88115826,111230.0,111220.0,0.28011308]
[1752117636014,1.88115826,111230.0,111220.0,0.27011308]
[1752117637913,2.07803426,111230.0,111220.0,0.02588946]
[1752117638212,0.1797608,111220.0,111210.0,0.1797733]
[1752117638416,1.18581508,111220.0,111210.0,0.19031336]
[1752117638916,1.18581508,111220.0,111210.0,0.1797733]
[1752117639318,1.18581508,111220.0,111210.0,0.1817733]
[1752117639515,1.26645446,111220.0,111210.0,0.1817733]
[1752117639921,1.27547678,111220.0,111210.0,0.1817733]
[1752117640419,1.27547678,111220.0,111210.0,0.1837733]
[1752117642008,0.8340374,111220.0,111210.0,0.19431348]
[1752117642212,1.1948374,111220.0,111210.0,0.19431348]
[1752117642716,1.27547678,111220.0,111210.0,0.19431348]
[1752117642917,1.27547678,111220.0,111210.0,0.1837733]
[1752117643520,1.1948374,111220.0,111210.0,0.1837733]
[1752117643822,1.1948374,111220.0,111210.0,0.2000733]
[1752117644822,0.6670227,111220.0,111210.0,0.2000733]
[1752117645119,1.1948374,111220.0,111210.0,0.2000733]
[1752117647622,1.27547678,111220.0,111210.0,0.2000733]
[1752117648624,1.27547678,111220.0,111210.0,0.0203]
[1752117648825,1.27547678,111220.0,111210.0,0.200077]
[1752117649325,1.27547678,111220.0,111210.0,0.0203]
[1752117649519,1.1948374,111220.0,111210.0,0.0203]
[1752117649720,1.1948374,111220.0,111210.0,0.200077]
[1752117649922,1.1948374,111220.0,111210.0,0.21413098]
[1752117651027,1.27547678,111220.0,111210.0,0.21413098]
[1752117654439,1.27547678,111220.0,111210.0,0.03435398]
[1752117654840,1.27547678,111220.0,111210.0,0.21413098]
[1752117655335,1.27547678,111220.0,111210.0,0.03435398]
[1752117655548,1.27547678,111220.0,111210.0,0.01805398]
[1752117655549,1.29253678,111220.0,111210.0,0.01805398]
[1752117661729,1.55644413,111220.0,111210.0,0.01805398]
[1752117662133,1.96323488,111220.0,111210.0,0.01805398]
[1752117662743,1.85580475,111220.0,111210.0,0.01805398]
[1752117663443,1.96323488,111220.0,111210.0,0.01805398]
[1752117663643,1.85580475,111220.0,111210.0,0.01805398]
[1752117664141,1.96323488,111220.0,111210.0,0.01805398]
[1752117664643,1.84580475,111220.0,111210.0,0.01805398]
[1752117665142,1.95323488,111220.0,111210.0,0.01805398]
[1752117665840,1.68932753,111220.0,111210.0,0.01805398]
[1752117666037,1.78580475,111220.0,111210.0,0.01805398]
[1752117666438,1.89323488,111220.0,111210.0,0.01805398]
[1752117667042,1.78580475,111220.0,111210.0,0.01805398]
[1752117667339,1.89323488,111220.0,111210.0,0.01805398]
[1752117667640,1.78580475,111220.0,111210.0,0.01805398]
[1752117668640,1.89323488,111220.0,111210.0,0.01805398]
[1752117669144,1.78580475,111220.0,111210.0,0.01805398]
[1752117669645,1.82580475,111220.0,111210.0,0.01805398]
[1752117671037,1.78580475,111220.0,111210.0,0.01805398]
[1752117672449,1.89323488,111220.0,111210.0,0.01805398]
[1752117673747,1.8542753,111220.0,111210.0,0.01805398]
[1752117673948,1.89471104,111220.0,111210.0,0.01805398]
[1752117674452,1.89471104,111220.0,111210.0,0.01805483]
[1752117674647,1.90471104,111220.0,111210.0,0.01805483]
[1752117676055,1.89471104,111220.0,111210.0,0.01805483]
[1752117679755,1.91471973,111220.0,111210.0,0.01805483]
[1752117681058,1.96471973,111220.0,111210.0,0.01805483]
[1752117685360,1.85729379,111220.0,111210.0,0.01805483]
[1752117686062,1.81729379,111220.0,111210.0,0.01805483]
[1752117686562,1.81729379,111220.0,111210.0,0.01805514]
[1752117689563,1.92158828,111220.0,111210.0,0.01805514]
[1752117690360,0.179777,111210.0,111200.0,0.18159168]
[1752117690561,2.29158179,111210.0,111200.0,0.03236411]
[1752117691456,2.30864179,111210.0,111200.0,0.03236411]
[1752117691660,2.30864179,111210.0,111200.0,0.02130848]
[1752117692159,2.30864179,111210.0,111200.0,0.02430848]
[1752117693969,2.29158179,111210.0,111200.0,0.02430848]
[1752117695967,1.91158179,111210.0,111200.0,0.02430848]
[1752117696167,2.16396239,111210.0,111200.0,0.02430848]
[1752117698866,2.27158179,111210.0,111200.0,0.02430848]
[1752117699068,2.27158179,111210.0,111200.0,0.20410168]
[1752117699672,2.24158179,111210.0,111200.0,0.20410168]
[1752117701066,2.25158179,111210.0,111200.0,0.20410168]
[1752117702373,2.25158179,111210.0,111200.0,0.21815746]
[1752117703670,2.14396239,111210.0,111200.0,0.21815746]
[1752117704466,1.27614769,111210.0,111200.0,0.21815746]
[1752117704672,2.16396239,111210.0,111200.0,0.21815746]
[1752117704873,1.80396239,111210.0,111200.0,0.21815746]
[1752117705069,2.17396239,111210.0,111200.0,0.21815746]
[1752117705871,1.91005504,111210.0,111200.0,0.21815746]
[1752117706072,1.85005504,111210.0,111200.0,0.21815746]
[1752117708068,1.90005504,111210.0,111200.0,0.21815746]
[1752117709673,1.91005504,111210.0,111200.0,0.20410168]
[1752117710276,1.91005504,111210.0,111200.0,0.21815721]
[1752117710469,1.91005504,111210.0,111200.0,0.20164721]
[1752117710776,2.28158179,111210.0,111200.0,0.21815721]
[1752117710974,1.91158179,111210.0,111200.0,0.21815721]
[1752117711275,2.28158179,111210.0,111200.0,0.21815721]
[1752117711672,1.91158179,111210.0,111200.0,0.21815721]
[1752117712176,2.24158179,111210.0,111200.0,0.21815721]
[1752117714573,2.25158179,111210.0,111200.0,0.21815721]
[1752117716179,1.91158179,111210.0,111200.0,0.21815721]
[1752117716379,2.22158179,111210.0,111200.0,0.21815721]
[1752117718377,2.22158179,111210.0,111200.0,0.03836401]
[1752117719081,2.23864179,111210.0,111200.0,0.03836401]
[1752117719283,2.23864179,111210.0,111200.0,0.02185401]
[1752117719487,1.92864179,111210.0,111200.0,0.02185401]
[1752117719682,2.28864179,111210.0,111200.0,0.02185401]
[1752117720788,2.18102239,111210.0,111200.0,0.02185401]
[1752117720977,1.82102239,111210.0,111200.0,0.02185401]
[1752117721173,2.25864179,111210.0,111200.0,0.02185401]
[1752117721373,2.15102239,111210.0,111200.0,0.02185401]
[1752117722887,2.25864179,111210.0,111200.0,0.02185401]
[1752117724586,2.24864179,111210.0,111200.0,0.02185401]
[1752117724990,2.14102239,111210.0,111200.0,0.02185401]
[1752117725692,2.24873858,111210.0,111200.0,0.02185401]
[1752117725996,1.92873858,111210.0,111200.0,0.02185401]
[1752117726298,2.30873858,111210.0,111200.0,0.02185401]
[1752117726478,2.30873858,111210.0,111200.0,0.01585401]
[1752117726683,2.30973858,111210.0,111200.0,0.01585401]
[1752117728394,2.30973858,111210.0,111200.0,0.00521661]
[1752117729488,1.92973858,111210.0,111200.0,0.00521661]
[1752117729688,2.30631688,111210.0,111200.0,0.00521661]
[1752117729892,2.17202239,111210.0,111200.0,0.00521661]
[1752117730288,2.30631688,111210.0,111200.0,0.00521661]
[1752117730893,2.17202239,111210.0,111200.0,0.00521661]
[1752117731089,2.19202239,111210.0,111200.0,0.00802797]
[1752117731288,2.19202239,111210.0,111200.0,0.00281136]
[1752117731493,2.32631688,111210.0,111200.0,0.00281136]
[1752117732088,2.19202239,111210.0,111200.0,0.00281136]
[1752117733289,2.32631688,111210.0,111200.0,0.00281136]
[1752117733489,0.1797931,111200.0,111190.0,0.00197976]
[1752117733691,1.61508045,111200.0,111190.0,0.00197976]
[1752117733991,1.63214045,111200.0,111190.0,0.00197976]
[1752117734788,1.63214045,111200.0,111190.0,0.00297976]
[1752117735688,1.59989045,111200.0,111190.0,0.00397976]
[1752117736490,1.58989045,111200.0,111190.0,0.00397976]
[1752117736993,1.65989045,111200.0,111190.0,0.00397976]
[1752117737194,1.67695045,111200.0,111190.0,0.00397976]
[1752117739595,1.56931642,111200.0,111190.0,0.00397976]
[1752117740094,1.67695045,111200.0,111190.0,0.00397976]
[1752117740394,1.67695045,111200.0,111190.0,0.01803663]
[1752117740595,1.67695045,111200.0,111190.0,0.00397976]
[1752117740997,1.65695045,111200.0,111190.0,0.00397976]
[1752117742199,1.62695045,111200.0,111190.0,0.00397976]
[1752117742492,0.32787585,111200.0,111190.0,0.81311311]
[1752117742697,0.56486661,111200.0,111190.0,0.92651311]
[1752117742889,1.17718661,111200.0,111190.0,0.92651311]
[1752117743492,0.91327926,111200.0,111190.0,0.92651311]
[1752117743698,1.17718661,111200.0,111190.0,0.92651311]
[1752117744493,0.30095926,111200.0,111190.0,1.27651311]
[1752117744697,0.1211728,111200.0,111190.0,1.72028446]
[1752117744999,0.08072418,111200.0,111190.0,1.72028234]
[1752117745593,0.1211728,111200.0,111190.0,1.72309323]
[1752117745893,0.08072418,111200.0,111190.0,1.54322923]
[1752117746095,0.1211728,111200.0,111190.0,1.5237701]
[1752117746401,1.02606645,111210.0,111200.0,0.1797932]
[1752117746599,1.06666173,111210.0,111200.0,1.13334337]
[1752117746902,1.06662173,111210.0,111200.0,1.15689337]
[1752117747494,0.45438173,111210.0,111200.0,1.51769337]
[1752117747798,1.06762173,111210.0,111200.0,1.00041925]
[1752117747997,1.33152908,111210.0,111200.0,1.19823341]
[1752117748190,1.33152908,111210.0,111200.0,0.92378548]
[1752117748799,0.71928908,111210.0,111200.0,0.92378548]
[1752117749099,1.34755908,111210.0,111200.0,0.92378548]
[1752117749289,1.33152908,111210.0,111200.0,0.92378548]
[1752117750103,1.2508049,111210.0,111200.0,0.92378548]
[1752117751406,1.33152908,111210.0,111200.0,0.92378548]
[1752117752606,1.33152908,111210.0,111200.0,0.65987813]
[1752117752808,1.33152908,111210.0,111200.0,0.92378548]
[1752117753106,1.33152908,111210.0,111200.0,0.88376548]
[1752117753403,1.2508049,111210.0,111200.0,0.92374548]
[1752117753806,0.98689755,111210.0,111200.0,0.92374548]
[1752117754009,1.2508049,111210.0,111200.0,0.92374548]
[1752117755111,1.5708049,111210.0,111200.0,0.04041493]
[1752117755402,0.0449631,111170.0,111140.0,0.5962327]
[1752117755604,0.99055965,111160.0,111150.0,0.34234274]
[1752117755816,1.02135965,111160.0,111150.0,0.35877274]
[1752117755998,0.79795304,111160.0,111150.0,0.35877274]
[1752117756205,0.79795304,111160.0,111150.0,0.01822929]
[1752117756404,1.15875304,111160.0,111150.0,0.02822929]
[1752117756600,1.15875304,111160.0,111150.0,0.01179929]
[1752117756796,0.9180524,111160.0,111150.0,0.01179929]
[1752117757000,0.9340824,111160.0,111150.0,0.02822929]
[1752117757404,0.9340824,111160.0,111150.0,0.01822929]
[1752117758199,0.9115424,111160.0,111150.0,0.01822929]
[1752117758404,0.9433424,111160.0,111150.0,0.01822929]
[1752117759109,0.75143508,111160.0,111150.0,0.38822929]
[1752117759310,0.65520914,111160.0,111150.0,0.38822929]
[1752117759513,0.37460508,111160.0,111150.0,0.35177929]
[1752117759713,0.6147084,111160.0,111150.0,0.35177929]
[1752117759904,0.6147084,111160.0,111150.0,0.54165329]
[1752117760420,0.5986784,111160.0,111150.0,0.36177929]
[1752117760721,0.6147084,111160.0,111150.0,0.54165329]
[1752117761423,0.6147084,111160.0,111150.0,0.22165329]
[1752117761621,0.6147084,111160.0,111150.0,0.53165329]
[1752117762521,0.6147084,111160.0,111150.0,0.55165329]
[1752117763422,0.6147084,111160.0,111150.0,0.60165329]
[1752117763624,0.6147084,111160.0,111150.0,0.22165329]
[1752117763824,0.6147084,111160.0,111150.0,0.53165329]
[1752117764324,0.65515824,111160.0,111150.0,0.22165329]
[1752117764625,0.65515824,111160.0,111150.0,0.57165329]
[1752117764826,0.39058418,111160.0,111150.0,1.19702735]
[1752117765017,0.31195418,111160.0,111150.0,2.45812735]
[1752117765326,0.31195418,111160.0,111150.0,2.48832735]
[1752117765526,0.29297448,111160.0,111150.0,2.48832735]
[1752117766125,0.29297448,111160.0,111150.0,2.50832735]
[1752117767024,0.29297448,111160.0,111150.0,2.51032735]
[1752117768124,0.22030774,111160.0,111150.0,2.69025535]
[1752117768322,0.04044984,111160.0,111150.0,2.77490141]
[1752117768523,0.04044984,111160.0,111150.0,2.95482941]
[1752117768924,0.04044984,111160.0,111150.0,2.69025535]
[1752117770727,0.04044984,111160.0,111150.0,2.93482941]
[1752117771125,0.04044984,111160.0,111150.0,2.93582941]
[1752117771830,0.04044984,111160.0,111150.0,2.67125535]
[1752117772630,0.04044984,111160.0,111150.0,2.93582941]
[1752117775428,0.4123882,111170.0,111160.0,0.1798579]
[1752117775622,0.45287818,111170.0,111160.0,1.20166196]
[1752117775823,0.45287818,111170.0,111160.0,1.22521196]
[1752117776534,0.45287818,111170.0,111160.0,1.17521196]
[1752117777335,0.45287818,111170.0,111160.0,0.84521196]
[1752117777538,0.45287818,111170.0,111160.0,1.17521196]
[1752117778035,0.45287818,111170.0,111160.0,0.91950189]
[1752117778335,0.45287818,111170.0,111160.0,1.18407595]
[1752117780136,0.45287818,111170.0,111160.0,1.17407595]
[1752117781046,0.45287818,111170.0,111160.0,1.22407595]
[1752117782132,0.71745224,111170.0,111160.0,2.1795979]
[1752117782325,0.71745224,111170.0,111160.0,0.3608]
[1752117782530,0.73297224,111170.0,111160.0,0.1954779]
[1752117783433,0.73297224,111170.0,111160.0,0.5654779]
[1752117783637,0.73297224,111170.0,111160.0,0.5354779]
[1752117784338,0.81369642,111170.0,111160.0,0.5354779]
[1752117785739,0.81369642,111170.0,111160.0,0.5054779]
[1752117785936,0.79817642,111170.0,111160.0,0.4898579]
[1752117786135,0.81369642,111170.0,111160.0,0.4898579]
[1752117786740,0.81369642,111170.0,111160.0,0.4998579]
[1752117787035,0.81369642,111170.0,111160.0,0.5154779]
[1752117788247,0.77320644,111170.0,111160.0,0.5154779]
[1752117788540,0.81400881,111170.0,111160.0,0.5154779]
[1752117790342,0.81400881,111170.0,111160.0,0.5654779]
[1752117791343,0.81400881,111170.0,111160.0,0.5054779]
[1752117794543,1.42804881,111170.0,111160.0,0.5054779]
[1752117794847,1.42804881,111170.0,111160.0,0.5554779]
[1752117795250,0.81400881,111170.0,111160.0,0.5554779]
[1752117795447,1.42804881,111170.0,111160.0,0.5554779]
[1752117795648,1.42796881,111170.0,111160.0,0.5554779]
[1752117796148,1.42796881,111170.0,111160.0,0.5154779]
[1752117798550,1.42796881,111170.0,111160.0,0.1954779]
[1752117800650,1.42796881,111170.0,111160.0,0.5254779]
[1752117801753,1.42796881,111170.0,111160.0,0.5454779]
[1752117802649,0.81400881,111170.0,111160.0,0.5454779]
[1752117802953,1.42776881,111170.0,111160.0,0.5454779]
[1752117805058,1.42776881,111170.0,111160.0,0.54554659]
[1752117805654,1.41224881,111170.0,111160.0,0.19554659]
[1752117810851,0.82203881,111170.0,111160.0,0.19554659]
[1752117811052,1.45046881,111170.0,111160.0,0.19554659]